{"text_format":"1","workbook":"xlsx","n_sheets":5,"sheets":["Context","National Workplan","Draft Global RRF","RFF List","Drop-down"],"not_rendered":{"charts":0,"images":2,"macros":1,"external_links":0,"defined_names":29,"comments":4,"pivot_tables":0},"unopened":[],"bounds":{"document_bytes":16777216,"sheet_cells":100000,"rows_first":2000,"rows_last":500,"rows_between":2000,"halvings":0,"cell_chars":16384,"cell_head_chars":4096},"cells_cut":0,"cells_raw":0,"read":"whole","date_system":"1900"}

{"sheet":"Context","index":0,"n_rows":19,"n_cols":3,"rows_kept":19,"cut":false,"hidden":false,"merged":[[0,1,0,2],[2,1,2,2],[12,1,12,2]]}
[null,"           \nUNDP'S CLIMATE PROMISE: FROM PLEDGE TO IMPACT\nWORKPLAN"]
[]
[null,"CO Information"]
[null,"Country name","BENIN"]
[null,"UNDP Country Office Focal Point \n(please enter name and e-mail address)","Isidore AGBOKOU, isidore.agbokou@undp.org"]
[null,"Project ID"]
[null,"CO Integrated Work Plan (IWP) Output/Enabling Action (s):\n(CO is now in the process of formulating a new IWP for 2022. This is a good opportunity to influence the process to ensure the CO IWP through the Corporate Planning System or Quantum+ to dedicate an Enabling Action and/or Output related to NDC support.)","1. Promouvoir les technologies basses consommatrices de bois-énergie;\n2. Promouvoir les techniques culturales améliorées dans le cadre de la production végétale."]
[null,"Region: select from dropdown list\n","RBA"]
[null,"UNDP Regional Programme 2022-2025 Outputs: \nSelect from dropdown. You may select as many outputs as relevant to which the workplan is aligned. To access the full regional program documents select from below: (note: if the link does not load, please refresh it in the browser)\n\n","Produit 3.3: les Etats membres sont outillés pour établir, communiquer et maintenir des Contributions Déterminées au Niveau National dans le cadre de l'Accord de Paris (Article 4, Parag 2) "]
[null,"UNDP Strategic Plan 2022-2025 Indicator(s):\nDefault indicator that every Climate Promise initiative contribute to. See all Indicators ","Nombre de pays s'étant donné des mesures politiques qui leur permettent de renforcer et / ou de mettre en œuvre leur CDN dans le cadre de l'Accord de Paris (indicateur 1.1.2 de l'IRFF)"]
[null,"Please add other indicators to which your workplan is aligned. From the dropdown list, plesae select as many as relevant.  \n\n"]
[]
[null,"Country Context"]
[null,"Ministry (ies) and/or government bodies leading implementation of the Climate Promise support","Ministère du cadre de Vie et du développement durable"]
[null,"Main highlights of updated/revised NDC (e.g. level of ambition, new sectors included, new gases included, gender dimension included, etc.)","Concernant les secteurs et gaz couverts, la CDN de 2017 a considéré les émissions des gaz suivants : Dioxyde de carbone (CO2), méthane (CH4), oxyde nitreux (N2O). Quant à la CDN actualisée, elle couvre, en plus de ces gaz, les Polluants climatiques à courte durée de vie ou SLCPs et autres polluants atmosphériques tels que le carbone noir, le carbone organique, l’ammoniac (NH3), les particules PM2,5 et PM10, le monoxyde de carbone (CO), les oxydes d’azote (NOx) et les composés organiques volatils non méthaniques (COVNM). \n\nPar rapport à l'atténuation, les mesures envisagées dans la CDN de 2017 sont susceptibles de contribuer à réduire les émissions cumulées de GES (hors UTCATF) d’environ 49,49 Mt E CO2 par rapport au scénario Business as usual (BAU), soit une réduction de 16,17 % sur la période 2021-2030 dont 12,55% de contribution conditionnelle et 3,62% de contribution inconditionnelle. \nLes mesures envisagées dans la CDN révisée, sont susceptibles de contribuer à réduire les émissions cumulées de GES (hors UTCATF) d’environ 48,75 Mt E CO2 par rapport au scénario de référence, soit une réduction de 20,15 % sur la période 2021-2030. \nPar ailleurs, les SLCP (autres que GES) et polluants atmosphériques, 12 mesures ont été envisagées dans le secteur Energie et sont susceptibles de contribuer à réduire les émissions de carbone noir d’environ 1,8 Mt en 2030 par rapport au scénario de référence, soit une réduction de 14,2 %.\n\nEnfin, relativement à la dimension genre, alors que la CDN de 2017 faisait une vague référence à la question du genre, la CDN actualisée donne clairement un aperçu global sur les possibilités de prise en compte de l’aspect genre dans la mise en œuvre de la CDN. En efffet, la CDN actualisée définit par secteur et par domaine d’action les niveaux appropriés de prise en compte de l’approche genre, assortis des indicateurs de prise en compte du genre et de quelques recommandations pour le plan de mise en œuvre de la CDN actualisée."]
[null,"How is this new Climate Promise 2 support contributing to the implementation of the NDC?  (Short paragraph with not more than 100 words)","A travers la territorialisation de la CDN, les différentes actions qui sont prévues en son sein seront prises en compte dans les différents plans et programmes à mettre en œuvre aussi bien au niveau national, sectoriel que local. \nLa cartographie des sources de financement permettra d’identifier clairement les différentes opportunités qui s’offrent à la mise en œuvre de la CDN et comment y accéder pour bénéficier de ces financements. De plus l'implication du secteur privé dans les changements climatiques à travers le FNEC permettra d'augmenter l'opportunité de bénéficier du financement pour mettre en oeuvre la CDN \nSur le plan sectoriel chaque secteur sélectionnné sera plus focalisé sur ses activités en tenant compte des synergies qu’il est possible d’établir avec les autres secteurs pour plus d’efficacité d’action."]
[null,"How does this support complement other UNDP programmes in the country?\n(Short paragraph with not more than 100 words)","Cette initiative vient en complément aux différents projets en cours de mise en œuvre par le PNUD et qui sont comptabilisés dans les actions de la CDN. Les résultats des différents projets aussi bien en cours de mise en œuvre que de formulation sont comptabilisés dans la mise en œuvre de la CDN. Il permettra également au PNUD à travers la cartographie des financements novateurs de diversifier ses sources de financement. Le codage budgétaire par exemple, permet de finaliser le travail entrepris au niveau du projet Plan National d’Adaptation aux changements climatiques pour une meilleure connaissance des capacités internes en matière de finance climatique. Il s'agit des Projets : (i)  Renforcement de la Résilience des Moyens de Subsistance Ruraux et du Système de Gouvernance National et Infranational aux risques et à la variabilité climatiques au Bénin (PMSD); (ii) Promotion de la Production d'Electricité à base de Biomasse de rsidus agricoles; (iii) Projet de renforcement de la résilience du secteur énergétique du Bénin aux impacts des changements climatiques (PANA-2); (iv) Projet de construction de l’économie de demain sur la base des CDN : économie verte (Promesse Climatique 1).    "]
[null,"Is this support (in part or in full) responding to a request submitted by the country to the NDC Partnership? If yes, please specify.","Oui, le Gouvernement du Bénin a soumis une requête pour l'appui à la mise en œuvre de la CDN. Cette requête consiste en : « Appui continu au Ministère du Cadre de Vie et du Développement Durable et au Ministère de l’Economie et des Finances pour assurer une facilitation en Expertise économiques à travers un Conseiller Economique et en des activités additionnelles relatives à l’Economie verte, au Système de Mesures de Notification et de Vérifications (MRV) et à l’introduction de la tax carbone. Les activités d'appui à l'économie verte et à l'introduction de la taxe carbone sont celles qui sont prise en considération dans la présente initiative.  "]
[null,"List key partners that UNDP will be working with closely and actively to support the government as part of this Climate Promise support.","DGEC & FNEC (Ministère du Cadre de Vie et du Développement Durable); DGB (Ministère de l'Economie etd es Finances); CePED (Ministère du Développement et de la Coordination de l'Action Gouvernementale); ANCB (Association des Communes du Bénin) et les Communes. La GIZ sera associée à ce projet. Le Fonds pour l'Environnement Mondial, la belgique et les Pays-bas seront aussi associés au présent projet.  "]

{"sheet":"National Workplan","index":1,"n_rows":78,"n_cols":22,"rows_kept":78,"cut":false,"hidden":false,"merged":[[18,21,20,21],[21,21,23,21],[24,21,27,21],[2,17,2,20],[4,0,38,0],[13,2,15,2],[16,2,17,2],[7,2,12,2],[2,9,2,12],[2,13,2,16],[33,2,36,2],[37,2,38,2],[39,0,54,0],[55,0,69,0],[4,1,12,1],[16,1,17,1],[18,1,27,1],[33,1,38,1],[39,1,50,1],[51,2,52,2],[60,2,61,2],[74,0,76,0],[70,0,73,0],[0,0,0,2],[51,1,54,1],[55,1,59,1],[60,1,64,1],[65,1,69,1],[28,1,32,1],[18,2,20,2],[46,2,49,2],[43,2,45,2],[21,2,23,2],[24,2,27,2],[4,2,6,2]]}
["           \nUNDP'S CLIMATE PROMISE: FROM PLEDGE TO IMPACT\nWORKPLAN"]
[]
["Global Outcome 1","Global Output","National Deliverables","National Activities","Funding Source","Contributing Initiative","Budget Allocation","Responsible Party","Theme","Implementation Timeframe\n2022",null,null,null,"Implementation Timeframe\n2023",null,null,null,"Implementation Timeframe\n2024",null,null,null,"Comments"]
["Please do not edit","Please do not edit","Please include all deliverables supported by UNDP that contribute to the corresponding Global Output, whether they are funded by new funding from the Climate Promise 2 or not. (Add more row as appropriate. Do not merge row)","Please include key activities for each deliverable whether they are funded by new funding from the Cliamte Promise 2 or not. (Add more row as appropriate. Do not merge row)","Select from dropdown list. One funding source per activlity only, if activity has more than one funding sources, please repeat the activity. If \"Other\" is selected, please specify in the next column","Please input \"short project title (Donor)\", if more than one, separate by semi colon e.g.:\nNAP Readiness (GCF); CBiT (GEF); FCPF (WB,Norway)\n","Enter budget allocation for Climate Promise 2 activities only","Indicate the party responsible for impelmenting the activity - UNDP, Ministry of Environment, UN/NGO/Academic partner etc.","Select themes for each activity (Multiple selection possible). To de-select options, please clear the entire box and then re-enter the correct choices.","Q1","Q2","Q3","Q4","Q1","Q2","Q3","Q4","Q1","Q2","Q3","Q4","Please provide any additional information that you deem necessary to justify the proposed activity"]
["Global Outcome 1: Scale and Speed:  Countries have effectively strengthened inclusive and gender-responsive governance and financing mechanisms to enable delivery and tracking of NDC targets across sectors","Global Output 1.1: Inclusive policy, strategies, plans and regulatory frameworks (national, sectoral or sub-national) in place to support NDC implementation and drive green recovery","Deliverable 1.1.1: Programmes de renforcement des capacités prévus pour la mise en œuvre des CDN (page 75 Phase 1 & page 77 ligne 13)  ","Activity 1.1.1.1: Elaborer et mettre en oeuvre un programme de renforcement des capacités institutionnelles des acteurs de la CDN","CP2-BMZ",null,6000,"UNDP","Adaptation and Resilience",null,"x"]
[null,null,null,"Activity 1.1.1.2:  Elaborer le Programme de renforcement des capacités institutionnelles et réglementaire du sous-secteur Gestion des Changements Climatiques  ","CP2-BMZ",null,10000,"UNDP","Adaptation and Resilience",null,"x","x"]
[null,null,null,"Activity 1.1.1.3:  Organiser des ateliers de validation pour les programmes de renforcement de capacités ","CP2-BMZ",null,6000,"UNDP","Adaptation and Resilience",null,null,"x"]
[null,null,"Deliverable 1.1.2: Modèle intégré des emplois verts dans la transition juste","Activity 1.1.2.1:  Organiser un atelier de lancement du processus d'évaluation des emplois verts dans la transition juste","CP2-BMZ",null,6000,"UNDP","Green Jobs and Just Transition",null,"x"]
[null,null,null,"Activity 1.1.2.2: Collecte des données et conception du modèle intégré des emplois verts dans la transition juste","CP2-BMZ",null,70000,"UNDP","Green Jobs and Just Transition",null,null,"x"]
[null,null,null,"Activity 1.1.2.3: Organiser un atelier pour la validaton du modèle intégré sur les emplois verts","CP2-BMZ",null,6000,"UNDP","Green Jobs and Just Transition",null,null,"x"]
[null,null,null,"Activity 1.1.2.4: Renforcer le dialogue social et le soutien institutionnel au groupe de travail national en charge de la modélisation","CP2-BMZ",null,3000,"UNDP","Green Jobs and Just Transition",null,null,null,"x"]
[null,null,null,null,null,null,null,null,null,null,"x","x","x"]
[]
[null,null,"Deliverable 1.1.3: Plan de relance économique post-Covid 19 actualisé et intégrant les priorités à impacts économiques forts en matière d’adaptation et d’atténuation (PNA, CDN)","Activity 1.1.3.1: Faire l'état des lieux du plan de relance post-Covid 19 afin d’identifier les insuffisances en matière d’atténuation et d’adaptation aux changements climatiques pour mieux intégrer les besoins actualisés de la CDN et du PNA.","CP1-BMZ-GreenRecovery","BMZ Green Recovery (BMZ)",0,"UNDP","COVID-19 Recovery",null,"X","X","X","X","X","X","X"]
[null,null,null,"Activity 1.1.3.2: Conduire des évaluations socio-économiques pour identifier des priorités à impacts économiques forts en matière d’adaptation et d’atténuation (PNA, CDN) à intégrer dans le plan de relance post-Covid 19.","CP1-BMZ-GreenRecovery","BMZ Green Recovery (BMZ)",null,"UNDP","COVID-19 Recovery",null,null,null,"x","x","x"]
[null,null,null,"Activity 1.1.3.3: Actualiser le plan de relance avec les nouvelles perspectives identifiées à partir des besoins priorisés notamment CDN et PNA.","CP1-BMZ-GreenRecovery","BMZ Green Recovery (BMZ)",0,"UNDP","COVID-19 Recovery",null,"X","X","X","X","X","X","X"]
[null,"Global Output 1.2: Institutional capacities and whole-of-government coordination mechanisms at all levels strengthened to support effective, gender-responsive and inclusive NDC implementation processes\n","Deliverable 1.2.1: Plan d'action Genre pour Intégration des mesures de la CDN et du PNA sensibles au Genre dans la planification du Plan de relance post-Covid 19.","Activity 1.2.1.1: Analyser les mesures de la CDN et du PNA qui génèrent des opportunités entrepreneuriales vertes significatives aux efforts de la relance Post Covid 19.","CP1-BMZ-GreenRecovery","BMZ Green Recovery (BMZ)",0,"UNDP","COVID-19 Recovery",null,"X","X","X"]
[null,null,null,"activité 1.2.1.2: Développer un plan d’accès à des opportunités entrepreneuriales vertes qui optimisent l’autonomisation économique des femmes au niveau communautaire.","CP1-BMZ-GreenRecovery","BMZ Green Recovery (BMZ)",0,"UNDP","COVID-19 Recovery",null,"X","X","X"]
[null,"Global Output 1.3: Inclusive and gender-responsive financing strategies, plans or investment frameworks developed to define and mobilise diverse sources of finance (international/domestic public/Private sector) to support implementation of NDC actions and drive green recovery across key sectors","Deliverable 1.3.1: Plan d'actions pour le renforcement des investissements privés pour le climat","Activité 1.3.1 : Appuyer la formulation de 3 notes conceptuelles à soumettre aux fonds climatiques sur la base des projets de la CDN – actualisée ","CP2-BMZ",null,6000,"UNDP","Climate Finance","x",null,null,null,null,null,null,null,null,null,null,null,"Mobilizing international resources "]
[null,null,null,"Activity 1.3.2: Evaluer les besoins et les secteurs prioritairess d'investissement du secteur privé","CP2-BMZ",null,12000,"UNDP","Climate Finance",null,"x","x"]
[null,null,null,"Activity 1.3.1: Elaborer un plan d'action pour le FNEC pour renforcer ses capacité de mobilisation des ressources pour le secteur privé","CP2-BMZ",null,12000,"UNDP","Climate Finance",null,"x","x"]
[null,null,"Deliverable 1.3.2: Rapports de mise en œuvre du codage budgetaire des dépenses climat","Activity 1.3.2.1: Sensibiliser les acteurs locaux en vue de l'opérationnalisation du codage budgétaire des dépenses climat ","CP2-BMZ",null,5000,"UNDP","Climate Finance","x",null,null,null,null,null,null,null,null,null,null,null,"Mobilizing domestic resources "]
[null,null,null,"Activity 1.3.2.2: Renforcement des capactés des acteurs nationaux pour l'utilisation du codage budgétaire des dépenses climat","CP2-BMZ",null,5000,"UNDP","Climate Finance",null,"x"]
[null,null,null,"Activity 1.3.2.3: Appliquer le codage budgétaire des dépenses climat sur un secteur prioritaire des CDN","CP2-BMZ",null,7000,"UNDP","Climate Finance",null,null,"x"]
[null,null,"Deliverable 1.3.3 : Rapport sur la cartographie des financements climat assorti d'un plan d'action pour la mobilisation de ces financements","Activity 1.3.3.1:  Renforcement des capacités des acteurs sur la finance climatique","CP2-BMZ",null,5000,"UNDP","Climate Finance",null,"x",null,null,null,null,null,null,null,null,null,null,"Mobilizing Private secteor resources "]
[null,null,null,"Activity 1.3.3.2: Faire la cartographie des sources de financement climat (financement innovants)","CP2-BMZ",null,12000,"UNDP","Climate Finance",null,"x","x","x"]
[null,null,null,"Activity 1.3.3.3: Elaborer un plan d'action pour la mobilisation des financements verts y compris les ressources fiscales vertes","CP2-BMZ",null,12000,"UNDP","Climate Finance",null,null,"x","x"]
[null,null,null,"Activity 1.3.3.4: Organiser un atelier de validation de la cartographie des financements climat et du plan d'action de mobilisation des ressources  ","CP2-BMZ",null,9700,"UNDP","Climate Finance",null,null,null,"x"]
[null,"Global Output 1.4: Data and transparency systems and processes for the Enhanced Transparency Framework established or strengthened to measure the achievement of NDC targets"]
[]
[]
[]
[null,null,null,null,null,null,0]
[null,"Global Output 1.5: Implementation of priority NDC measures in key sectors and cross-cutting thematic areas are advanced by adopting an integrated approach.","Deliverable 1.5.1: Rapport de promotion de techniques culturales améliorées dans le cadre de la production végétale (CDN: Page 17-Mesures envisagées et émissions évitées dans le secteur de l’agriculture).","Activity 1.5.1.1: Acquisition de 15 tonnes de semence maïs varété Synee 2000 pour ls communes de Bopa, Avrankou, Savalou et Ouaké",null,"PMSD (FEM) ",null,"CePED (National Party)","Adaptation and Resilience",null,"X","X","X"]
[null,null,null,"Atctivity 1.5.1.2: Acquisition de 3 tonnes de pois d'angole et 3 tonnes de mucuna ",null,"PMSD (FEM) ",null,"CePED (National Party)","Adaptation and Resilience",null,"X","X","X"]
[null,null,null,"Activity 1.5.1.3: Partenariat avec l'INRAB pour la formation des producteurs repères des communautés bénéficiaires et conseillers ATDA sur les itinéraires techniques résilients, les techniques d e conservation et de restauration de la fretilité des sols dans des champs écoles dans une approche TOT",null,"PMSD (FEM) ",null,"CePED (National Party)","Adaptation and Resilience",null,"X","X","X"]
[null,null,null,"Activity 1.5.1.4: Formation en grande masse des producteurs par des producteurs réprèes formés sous la supervision des Conseillers ATDA"]
[null,null,"Deliverable 1.5.2: Rapport sur les 500 ménages qui ont eu accès à l’éclairage électrique en remplacement de l’éclairage au kérosène.","Activity 1.5.2.1: Acquisition de 100 000 kits de branchement des ménages aux réseaux conventionnel (kits solaires composés de trois lampes et de recharge multfiches)",null,"PANA et Biomasse (FEM) ",null,"DGRE Ministry of Energy (National Party) ","Adaptation and Resilience",null,"X","X","X"]
[null,null,null,"Activity 1.5.2.2: Fabrication de 500 rechauds améliorés et fours à pression équpés de kits solaires pour l'éclairage en soirée ",null,"PANA et Biomasse (FEM) ",0,"DGRE Ministry of Energy (National Party) ","Gender",null,"X","X","X"]
["Global Outcome  2: Amplifying Ambition: Countries have established long-term net-zero and climate resilient development pathways aligned with the goals of the Paris Agreement. .","Global Output 2.1: Countries have ownership, capacities and resources to enhance their NDC as part of the next revision cycle and global/regional stocktake, aligned to long-term pathways",null,null,null,null,0]
[]
[]
[]
[]
[]
[]
[]
[]
[]
[]
[null,null,"Deliverable 2.1.3 (gender-specific deliverable)"]
[null,"Global Output 2.2: Strategies, political will and capacities/resources for long-term net-zero, climate resilient pathways are established, including LTS.","Deliverable 2.2.1 Mécanisme interne de coordination des acteurs des finances publiques ","Activity 2.2.1.1: .Renforcer la coordination entre les différentes directions techniques de la DGB notamment la DPPSB, la DSIPP, la DI pour assurer l’interaction fonctionnelle nécessaire à une meilleure prise en compte des changements climatiques dans les phases de préparation du budget, d’exécution, de suivi et d’évaluation du budget.","CP1-BMZ-GreenRecovery","BMZ Green Recovery (BMZ)",0,null,"COVID-19 Recovery",null,"X","X","X","X","X","X","X"]
[null,null,null," Activity 2.2.1.2. Organiser les sessions de formations au profit des cadres sur leurs attributions et rôles dans la transition verte de l’économie du Bénin. ","CP1-BMZ-GreenRecovery","BMZ Green Recovery (BMZ)",0,null,"COVID-19 Recovery",null,"X","X","X","X","X","X","X"]
[null,null,null,"Activity 2.2.1.3: Appuyer le fonctionnement du Comité de Pilotage de la CDN actualisée ",null,null,6000]
[null,null,null,null,null,null,0]
["Outcome 3: Lasting Inclusivity: Key actors within society are systematically engaged and empowered to contribute to accelerate NDC implementation and long-term net-zero and climate resilient development pathways.","Global Output 3.1: Stakeholder engagement platforms and/or mechanisms established or strengthened and key actors are empowered to lead NDC implementation processes and long-term climate action","Deliverable 3.1.1","Activity 3.1.1.1",null,null,0]
[null,null,null,"Activity 3.1.1.2"]
[null,null,"Deliverable 3.1.2","Activity 3.1.2.1"]
[null,null,null,"Activity 3.1.2.2"]
[null,null,"Deliverable 3.1.3 (gender-specific deliverable)","Activity 3.1.3.1  (gender-specific activity)"]
[null,"Global Output 3.2: Innovative engagement mechanisms are developed and/or scaled to promote social mobilization (e.g. PCV/Mission 1.5, other innovation, ClimateBox, Climathon, etc…)","Deliverable 3.2.1: Rapport de l'évaluation économique des actions vertes à travers des analyses d’impacts sur le PIB et les autres agrégats macroéconomiques","Activity 3.2.1.1: Procéder à une collecte des données quantitatives et qualitatives pour concevoir une base stable d’informations climatiques et environnementales critiques contenues dans la CDN et le PNA.","CP1-BMZ-GreenRecovery","BMZ Green Recovery (BMZ)",0,"DGB Ministry of Finance ","COVID-19 Recovery",null,"X","X","X","X","X","X","X"]
[null,null,null,"Activity 3.2.1.2. Réaliser des analyses coût-efficacité, coût-bénéfice, coût-utilité ou de minimisation des coûts pour identifier des actions vertes à coût avantageux efficaces et en phase avec les objectifs de développement","CP1-BMZ-GreenRecovery","BMZ Green Recovery (BMZ)",0,"DGB Ministry of Finance ","COVID-19 Recovery",null,"X","X","X","X","X","X","X"]
[]
[]
[]
[null,"Global Output 3.3: Knowledge sharing platforms established and/or strengthened to enable exchange of information to inform NDC implementation and long-term pathways",null,null,null,null,0]
[]
[]
[null,null,null,null,null,null,0]
[null,null,null,null,null,null,0]
["Communications:  Processes and results of project activities are communicated to external partners, stakeholders, donors and broader society through products, campaigns, events, etc.","n.a.","Mise en œuvre de la Stratégie de Communication de la CDN ","Activité 4.1 : Appuyer la mise en œuvre de la Stratégie de Communication de la CDN ","CP2-BMZ",null,6000,"UNDP","Adaptation and Resilience",null,null,"x"]
[null,"n.a.","Page pays actualisé sur le site internet de la Promesse Climat","Produire des supports (articles, rapport d'activités, flyers, etc.) pour la mise  à jour du de la page web du Benin sur le site internet de la promesse climatique","CP2-BMZ",null,6000,"UNDP","Adaptation and Resilience",null,null,"x","x"]
[null,"n.a."]
[null,"n.a.",null,null,null,null,0]
["Project Management:  Capacity in country for coordination and management of Climate Promise support established","n.a.",null,"Project staff",null,null,110000,null,null,"x","x","x","x"]
[null,"n.a.",null,"DPC",null,null,10000,null,null,"x","x","x","x"]
[null,"n.a.",null,"GMS",null,null,{"$f":"0.085*(G76+G75+G72+G71+G28+G27+G26+G25+G24+G23+G22+G21+G20+G19+G13+G12+G11+G10)","v":19269.5},null,null,"x","x","x","x"]
[null,null,null,null,null,"Total Budget",{"$f":"SUM(G5:G77)","v":349969.5}]

{"sheet":"Draft Global RRF","index":2,"n_rows":31,"n_cols":5,"rows_kept":31,"cut":false,"hidden":false,"merged":[[3,1,22,1],[3,2,22,2],[25,3,28,3],[20,3,21,3],[14,3,17,3],[9,3,11,3],[3,3,6,3],[25,1,30,1],[23,2,24,2],[25,2,27,2],[28,2,29,2],[23,1,24,1]]}
[null,null,"Draft Global Result Framework"]
[]
[null,"Global Outcomes","Global Outcome Indicators ","Global Outputs","Global indicators (to be further refined)"]
[null,"Global Outcome 1: Scale and Speed:  Countries have effectively strengthened inclusive and gender-responsive governance and financing mechanisms to enable delivery and tracking of NDC targets across sectors.\n","1.1.\tNDC building blocks(a) are functioning \n \n(a)  Derived from experience in supporting countries on NDCs, UNDP has defined key building blocks or key elements for countries to have in place to support NDC implementation. They are: institutional coordination and stakeholder engagement mechanisms, mainstreaming of NDC targets into plans and budgets, NDC implementation plan, financing strategy/investment plan, mobilization of finance, implementation of actions, and monitoring and transparency. ","Global Output 1.1: Inclusive policy, strategies, plans and regulatory frameworks (national, sectoral or sub-national) in place to support NDC implementation and drive green recovery\n","1.1.1 Number of policies/strategies/plans/regulatory frameworks developed and/or implemented (at national, sectoral or sub-national level) to support NDC implementation including those that are inclusive and gender-responsive "]
[null,null,null,null,"1.1.2 Number of NDC and/or NAP implementation plans developed that establish clear linkages with the green recovery/post-covid strategies, SDGs and/or other international agendas"]
[null,null,null,null,"1.1.3.Nombre de rapport d’étude (identification, actualisation, analyse, plan d’accès)"]
[null,null,null,null,"1.1.4.Nombre de documents de politique COVID-19 (plans et outils de gestion) qui ont envisagé une reprise verte et vice-versa et qui intègrent le genre"]
[null,null,null,null,"1.1.5.Au moins 200 femmes formées sur le plan d’accès aux opportunités entrepreneuriales vertes"]
[null,null,null,null,"1.1.6.Recueil pour vulgarisation"]
[null,null,null,"Global Output 1.2: Institutional capacities and whole-of-government coordination mechanisms at all levels strengthened to support effective, gender-responsive and inclusive NDC implementation processes\n","1.2.1 Number of coordination mechanisms strengthened/established to support whole-of-government climate action, including those that are gender-responsive"]
[null,null,null,null,"1.2.2 Number of capacity building programmes on NDC-related processes for government institutions developed and implemented"]
[null,null,null,null,"1.2.3 Number of capacity building programmes developed and/or implemented on gender and climate/environment nexus"]
[null,null,null,null,"1.2.4.Existence d’une base stable d’informations climatiques et environnementales critiques contenues dans la CDN et le PNA. Et Existence d’un lien (internet) d’accès public à la base"]
[null,null,null,null,"1.2.5. Rapport portant analyses coût-efficacité, coût-bénéfice"]
[null,null,null,"Global Output 1.3: Inclusive and gender-responsive financing strategies, plans or investment frameworks developed to define and mobilise diverse sources of finance (international/domestic public/Private sector) to support implementation of NDC actions and drive green recovery across key sectors","1.3.1 Number of gender-responsive climate finance strategies/plans, linked to INFF, Medium Term Development Plans and/or green recovery strategies"]
[null,null,null,null,"1.3.2 Number of budget reforms across public finance management that integrate climate policy and align with NDC priorities and covid-19 recovery"]
[null,null,null,null,"1.3.3 Number of policy and regulatory measures established or strengthened to align and mobilise private capital for NDC implementation"]
[null,null,null,null,"1.3.4 Number of innovative finance and debt instruments established or strengthened to mobilise climate finance "]
[null,null,null,null,"1.3.5.Nombre de fonctionnaires des ministères et des agences gouvernementales qualifiés pour assurer conjointement le développement vert et une reprise efficace après les chocs"]
[null,null,null,null,"1.3.6.Existence d’un plan interne de coordination des acteurs des finances publiques  "]
[null,null,null,"Global Output 1.4: Data and transparency systems and processes for the Enhanced Transparency Framework established or strengthened to measure the achievement of NDC targets","1.4.1 Number of   MRV/M&E systems* strengthened or established [for mitigation, adaptation and/or finance], including those that are gender-responsive"]
[null,null,null,null,"1.4.2 Number of capacity building programmes on data and transparency developed or implemented, including gender-responsive programmes"]
[null,null,null,"Global Output 1.5: Implementation of NDC measures in key sectors and cross-cutting thematic areas are advanced by adopting an integrated approach.","To be determined"]
[null,"Global Outcome  2: Amplifying Ambition: Countries have established long-term net-zero and climate resilient development pathways aligned with the goals of the Paris Agreement. .","2.1 # of Countries with long-term goals and strategies put in place to achieve them.","Global Output 2.1: Countries have ownership, capacities and resources to enhance their NDC as part of the next revision cycle and global/regional stocktake, aligned to long-term pathways","2.1.1 Number of enhanced NDCs supported with higher quality(a) and ambition(b)\n\n(a) aligned with quality checklist\n(b) mitigation, adaptation and finance (UNFCCC - progression?)"]
[null,null,null,"Global Output 2.2: Strategies, political will and capacities/resources for long-term net-zero, climate resilient pathways are established, including LTS.","2.2.1 Number of countries supported to develop long-term strategy or define long-term goals as part of (sub)national development and/or sectoral strategies/policies"]
[null,"Outcome 3: Lasting Inclusivity: Key actors within society are systematically engaged and empowered to contribute to accelerate NDC implementation and long-term net-zero and climate resilient development pathways.","3.1  # and diversity of actors engaged/consulted (type of groups or actors reported)","Global Output 3.1: Stakeholder engagement platforms and/or mechanisms established or strengthened and key actors are empowered to lead NDC implementation processes and long-term climate action","3.1.1 Proportion of women’s groups and girls and youth  led organizations  in decision-making and leadership positions in NDC implementation mechanisms and processes \n"]
[null,null,null,null,"3.1.2 Number of non-government led organizations participating in NDC implementation through decision-making platforms\n"]
[null,null,null,null,"3.1.3 Number of partnerships established for joint or coordinated work with other implementing partners "]
[null,null,"3.2    # of countries whose activities are led and/or implemented by key stakeholder groups",null,"3.1.4 Capacity building (To be determined)"]
[null,null,null,"Output 3.2: Innovative engagement mechanisms are developed and/or scaled to promote social mobilization (e.g. PCV/Mission 1.5, other innovation, ClimateBox, Climathon, etc…)","3.2.1 Number of mechanisms and initiatives developed and/or scaled to promote social mobilization for NDC implementation"]
[null,null,"3.3  % of PCV on empowerment for NDC implementation and raising ambition","Output 3.3: Knowledge sharing platforms established and/or strengthened to enable exchange of information to inform NDC implementation and long-term pathways","3.3.1 Number of knowledge sharing platforms established and/or strengthened at national, regional and global level"]

{"sheet":"RFF List","index":3,"n_rows":22,"n_cols":5,"rows_kept":22,"cut":false,"hidden":true,"merged":[]}
[null,null,"Draft Global Result Framework"]
[]
[null,"Global Outcomes","Global Outcome Indicators ","Global Outputs","Global indicators"]
[null,"Global Outcome 1: Scale and Speed:  Countries have effectively strengthened inclusive and gender-responsive governance and financing mechanisms to enable delivery and tracking of NDC targets across sectors.\n","1.1 NDC building blocks(a) are functioning \n \n(a)  Derived from experience in supporting countries on NDCs, UNDP has defined key building blocks or key elements for countries to have in place to support NDC implementation. They are: institutional coordination and stakeholder engagement mechanisms, mainstreaming of NDC targets into plans and budgets, NDC implementation plan, financing strategy/investment plan, mobilization of finance, implementation of actions, and monitoring and transparency. ","Global Output 1.1: Inclusive policy, strategies, plans and regulatory frameworks (national, sectoral or sub-national) in place to support NDC implementation and drive green recovery",{"$f":"'Draft Global RRF'!E4","v":"1.1.1 Number of policies/strategies/plans/regulatory frameworks developed and/or implemented (at national, sectoral or sub-national level) to support NDC implementation including those that are inclusive and gender-responsive "}]
[null,"Global Outcome  2: Amplifying Ambition: Countries have established long-term net-zero and climate resilient development pathways aligned with the goals of the Paris Agreement. .","2.1 # of Countries with long-term goals and strategies put in place to achieve them.","Global Output 1.2: Institutional capacities and whole-of-government coordination mechanisms at all levels strengthened to support effective, gender-responsive and inclusive NDC implementation processes\n",{"$f":"'Draft Global RRF'!E5","v":"1.1.2 Number of NDC and/or NAP implementation plans developed that establish clear linkages with the green recovery/post-covid strategies, SDGs and/or other international agendas"}]
[null,"Outcome 3: Lasting Inclusivity: Key actors within society are systematically engaged and empowered to contribute to accelerate NDC implementation and long-term net-zero and climate resilient development pathways.","3.1  # and diversity of actors engaged/consulted (type of groups or actors reported)","Global Output 1.3: Inclusive and gender-responsive financing strategies, plans or investment frameworks developed to define and mobilise diverse sources of finance (international/domestic public/Private sector) to support implementation of NDC actions and drive green recovery across key sectors",{"$f":"'Draft Global RRF'!E10","v":"1.2.1 Number of coordination mechanisms strengthened/established to support whole-of-government climate action, including those that are gender-responsive"}]
[null,null,"3.2    # of countries whose activities are led and/or implemented by key stakeholder groups","Global Output 1.4: Data and transparency systems and processes for the Enhanced Transparency Framework established or strengthened to measure the achievement of NDC targets",{"$f":"'Draft Global RRF'!E11","v":"1.2.2 Number of capacity building programmes on NDC-related processes for government institutions developed and implemented"}]
[null,null,"3.3  % of PCV on empowerment for NDC implementation and raising ambition","Global Output 1.5: Targeted implementation of priority NDC measures in key sectors and cross-cutting thematic areas are initiated and/or scaled up by adopting an integrated approach.",{"$f":"'Draft Global RRF'!E12","v":"1.2.3 Number of capacity building programmes developed and/or implemented on gender and climate/environment nexus"}]
[null,null,null,"Global Output 2.1: Countries have ownership, capacities and resources to enhance their NDC as part of the next revision cycle and global/regional stocktake, aligned to long-term pathways",{"$f":"'Draft Global RRF'!E15","v":"1.3.1 Number of gender-responsive climate finance strategies/plans, linked to INFF, Medium Term Development Plans and/or green recovery strategies"}]
[null,null,null,"Global Output 2.2: Strategies, political will and capacities/resources for long-term net-zero, climate resilient pathways are established, including LTS.",{"$f":"'Draft Global RRF'!E16","v":"1.3.2 Number of budget reforms across public finance management that integrate climate policy and align with NDC priorities and covid-19 recovery"}]
[null,null,null,"Global Output 3.1: Stakeholder engagement platforms and/or mechanisms established or strengthened and key actors are empowered to lead NDC implementation processes and long-term climate action",{"$f":"'Draft Global RRF'!E17","v":"1.3.3 Number of policy and regulatory measures established or strengthened to align and mobilise private capital for NDC implementation"}]
[null,null,null,"Global Output 3.2: Innovative engagement mechanisms are developed and/or scaled to promote social mobilization (e.g. PCV/Mission 1.5, other innovation, ClimateBox, Climathon, etc…)",{"$f":"'Draft Global RRF'!E18","v":"1.3.4 Number of innovative finance and debt instruments established or strengthened to mobilise climate finance "}]
[null,null,null,"Global Output 3.3: Knowledge sharing platforms established and/or strengthened to enable exchange of information to inform NDC implementation and long-term pathways",{"$f":"'Draft Global RRF'!E21","v":"1.4.1 Number of   MRV/M&E systems* strengthened or established [for mitigation, adaptation and/or finance], including those that are gender-responsive"}]
[null,null,null,null,{"$f":"'Draft Global RRF'!E22","v":"1.4.2 Number of capacity building programmes on data and transparency developed or implemented, including gender-responsive programmes"}]
[null,null,null,null,{"$f":"'Draft Global RRF'!E24","v":"2.1.1 Number of enhanced NDCs supported with higher quality(a) and ambition(b)\n\n(a) aligned with quality checklist\n(b) mitigation, adaptation and finance (UNFCCC - progression?)"}]
[null,null,null,null,{"$f":"'Draft Global RRF'!E25","v":"2.2.1 Number of countries supported to develop long-term strategy or define long-term goals as part of (sub)national development and/or sectoral strategies/policies"}]
[null,null,null,null,{"$f":"'Draft Global RRF'!E26","v":"3.1.1 Proportion of women’s groups and girls and youth  led organizations  in decision-making and leadership positions in NDC implementation mechanisms and processes \n"}]
[null,null,null,null,{"$f":"'Draft Global RRF'!E27","v":"3.1.2 Number of non-government led organizations participating in NDC implementation through decision-making platforms\n"}]
[null,null,null,null,{"$f":"'Draft Global RRF'!E28","v":"3.1.3 Number of partnerships established for joint or coordinated work with other implementing partners "}]
[null,null,null,null,{"$f":"'Draft Global RRF'!E29","v":"3.1.4 Capacity building (To be determined)"}]
[null,null,null,null,{"$f":"'Draft Global RRF'!E30","v":"3.2.1 Number of mechanisms and initiatives developed and/or scaled to promote social mobilization for NDC implementation"}]
[null,null,null,null,{"$f":"'Draft Global RRF'!E31","v":"3.3.1 Number of knowledge sharing platforms established and/or strengthened at national, regional and global level"}]

{"sheet":"Drop-down","index":4,"n_rows":18,"n_cols":13,"rows_kept":18,"cut":false,"hidden":true,"merged":[]}
["Funding Source",null,"Thematic Tagging",null,"Region","Link","RBA","RBAP","RBAS","RBEC","RBLAC",null,"Strategic Plan Indicators"]
["NDCSP-BMU",null,"Net-zero Pathways (LTS/LEDS)",null,"RBA","https://undocs.org/DP/RPD/RBA/4","Output 3.1. Regional institutions capacities enhanced to advance effective climate adaptation, disaster risk reduction, early warning and resilience building policies, strategies, and programmes","Output 1.1. Enabling environment strengthened for planning and budgeting and to expand public and private sector investments and innovative financing, including through integrated national financing frameworks within national development frameworks, for prosperity and climate- and gender-responsive achievement of the SDGs ","Output 1.1. The 2030 Agenda and other intergovernmentally agreed frameworks integrated in national and local development plans, measures to accelerate progress put in place, and budgets and progress assessed using data-driven solutions","Output 1.1: The 2030 Agenda, Paris Agreement and other intergovernmentallyagreed frameworks integrated in national and local development plans, measures to accelerate progress put in place and budgets and progress assessed using datadriven solutions.","Output 3.1: Development vision, strategies and decision-making aligned with climate change mitigation and adaptation, nature protection, disaster risk reduction and resilience objectives",null,"1.1.1 Number of countries that have development plans and budgets that integrate intergovernmentally-agreed frameworks across the whole-of-government:\n•\t2030 Agenda for Sustainable Development\n•\tParis Agreement\n•\tBeijing Declaration and Platform for Action\n•\tSAMOA Pathway\n•\tIstanbul Programme of Action for the Least Developed Countries \n•\tVienna Programme of Action for Landlocked Developing Countries\n•\tAfrican Union Agenda 2063"]
["NDCSP-BMZ",null,"Adaptation and Resilience",null,"RBAP","https://undocs.org/DP/RPD/RAP/4","Output 3.2. Relevant stakeholders across Africa have the capacity to implement sustainable and green energy innovations","Output 1.4. Sustainable, scalable and innovative solutions and strategies for nature, climate and energy transformation strengthened through enhanced ‘climate promise’, nature-based solutions, and transitioning to clean energy and zero-carbon development.","Output 2.2. Capacities for conflict prevention, resilience and peacebuilding strengthened at regional, national, and subnational levels and across borders (Resilience includes risk-informed climate adaptation and mitigation, and environmental security).","Output 1.3: Transition to renewable energy accelerated capitalizing on technological gains, clean energy innovations and new financing mechanisms to support green recovery","Output 3.2: Mechanisms and tools to support financial strategies and budget allocations for the transition of key economic sectors towards green and climate-resilient development.",null,"3.1.1 Number of risk-informed development strategies and plans in place at:\n•\tregional level\n•\tnational level  \n•\tsub-national level  \n•\tsectoral level  "]
["NDCSP-EU",null,"Green Jobs and Just Transition",null,"RBAS","https://undocs.org/DP/RPD/RAS/5","Output 3.3. Member states have the capacity to prepare, communicate and maintain successive nationally determined contributions (NDC) in the context of the Paris Agreement","Output 3.2. Governments in Asia-Pacific at all levels have improved capacities, data and systems to better anticipate, respond to, recover from and mitigate multi-dimensional risks, shocks and crises, leaving no-one behind. ","Output 3.1. Public and private investment mechanisms mobilized for biodiversity, water, oceans, and climate solutions.","Output 1.7: Public and private financing for the achievement of the SDGs expanded at regional levels","Output 3.3: Diverse stakeholders equipped with strengthened capacities and opportunities to foster sustainable development solutions and enhance their resilience",null,"3.1.2 Number of countries with early warning and preparedness measures in place to manage impact of conflicts, disasters, pandemics and other shocks"]
["NDCSP-Spain",null,"Youth",null,"RBEC","https://undocs.org/DP/RPD/REC/5","Output 3.4. Regional actors have improved capacity and relevant tools to access and manage natural resource assets, including water, forests, and land",null,"Output 3.2. Energy gap reduced","Output 3.1: Institutional systems to manage multidimensional risks and shocks strengthened at regional levels",null,null,"3.1.3 Number of gender-responsive conflict sensitive development policies, cross-border initiatives, plans, or institutions in place to: \n•\taddress conflict drivers\n•\tstrengthen social cohesion  \n•\tprevent risk of conflict, including climate security  "]
["CP1-Sweden",null,"Gender",null,"RBLAC","https://undocs.org/DP/RPD/RLA/4",null,null,"Output 3.3. Transition to renewable energy accelerated capitalizing on technological gains, clean energy innovations and new financing mechanisms to support green recovery.","Output 3.4: Natural resources protected and managed to enhance sustainable productivity and livelihoods",null,null,"3.2.1 Number of cross-border, regional, national, and sub-national policies, strategies, and action plans for conflict prevention and peacebuilding: \n•\tPrevention of violent extremism \n•\tReconciliation \n•\tReintegration\n•\tClimate change"]
["CP1-Sida",null,"Indigenous People",null,null,null,null,null,null,null,null,null,"4.1.1 Number of people directly benefitting from initiatives to protect nature and promote sustainable use of resources"]
["CP1-Core (11888, Trac etc.)",null,"Climate Finance",null,null,null,null,null,null,null,null,null,"4.1.2 Natural resources that are managed under a sustainable use, conservation, access, and benefit-sharing regime:  \n•\tArea of terrestrial and marine protected areas created or under improved management practices (hectares)    \n•\tNumber of shared water ecosystems (fresh or marine) under new or improved cooperative management  \n•\tCoverage and scale of ecosystems with enhanced resilience to climate change (hectares and kilometres) \n•\tArea of forest and forest land restored (hectares)  \n•\tAreas of landscapes under improved practices, excluding protected areas (hectares)\n•\tAmount of chemicals reduced, disposed or avoided (metric tons) "]
["CP1-BMZ-GreenRecovery",null,"Circular Economy",null,null,null,null,null,null,null,null,null,"4.2.1 Number of people directly benefitting from mechanisms for biodiversity, water, oceans, and climate solutions funded by public and/or private sector resources"]
["CP2-BMU",null,"COVID-19 Recovery",null,null,null,null,null,null,null,null,null,"4.2.2 Number of people with enhanced resilience of health, food, and water security, and/or livelihoods due to public and/or private resources"]
["CP2-BMZ",null,"Energy",null,null,null,null,null,null,null,null,null,"5.1.1 Number of people, who gained access to clean, affordable and sustainable energy"]
["CP2-Sweden",null,"Forest",null,null,null,null,null,null,null,null,null,"5.1.2 Number of people, who benefitted from services from clean, affordable and sustainable energy"]
["CP2-Sweden/Stockholm+50",null,"Food and Agriculture",null,null,null,null,null,null,null,null,null,"5.2.1 Increase (in megawatt) in installed renewable energy capacity per technology:  \n•\tSolar\n•\tWind\n•\tBiomass\n•\tHydro\n•\tGeothermal"]
["CP2-Iceland",null,"Oceans and Water",null,null,null,null,null,null,null,null,null,"5.2.2 Amount of energy saved (in megajoule) "]
["CP2-JSB",null,"Other Nature-Based Solutions",null,null,null,null,null,null,null,null,null,"5.2.3 Volume of investment leveraged to support green recovery (in US dollars) "]
["CP2-UK",null,"Urban "]
["Other",null,"Transparency"]
[null,null,"Climate Security"]